fUST/lending_fUST_20251114
["ID","MTS","AMOUNT","RATE_DAILY","PERIOD"]
[393925224,1763097050631,-500.0,0.00084442,120]
[393925226,1763097050640,-500.0,0.00084442,120]
[393925228,1763097050652,-500.0,0.00084442,120]
[393925230,1763097050662,-500.0,0.00084442,120]
[393925232,1763097050672,-500.0,0.00084442,120]
[393925234,1763097050683,-500.0,0.00084442,120]
[393925236,1763097050692,-500.0,0.00084442,120]
[393925238,1763097050702,-500.0,0.00084442,120]
[393925240,1763097050711,-500.0,0.00084442,120]
[393925242,1763097050721,-500.0,0.00084442,120]
[393925244,1763097050730,-500.0,0.00084442,120]
[393925246,1763097050739,-500.0,0.00084442,120]
[393925248,1763097050748,-500.0,0.00084442,120]
[393925250,1763097050757,-500.0,0.00084442,120]
[393925252,1763097050767,-500.0,0.00084442,120]
[393925254,1763097050776,-6000.0,0.00084442,120]
[393925255,1763097050785,-1000.0,0.00084442,120]
[393925257,1763097050795,-1000.0,0.00084443,120]
[393925259,1763097050804,-500.0,0.00084444,30]
[393925261,1763097050814,-500.0,0.00084444,30]
[393925262,1763097050823,-500.0,0.00084444,30]
[393925264,1763097050836,-500.0,0.00084444,30]
[393925266,1763097050847,-500.0,0.00084444,30]
[393925268,1763097050856,-500.0,0.00084444,30]
[393925270,1763097050866,-500.0,0.00084444,30]
[393925271,1763097050875,-500.0,0.00084444,30]
[393925273,1763097050885,-500.0,0.00084444,30]
[393925275,1763097050895,-500.0,0.00084444,30]
[393925277,1763097050904,-500.0,0.00084444,30]
[393925279,1763097050917,-500.0,0.00084444,30]
[393925281,1763097050926,-500.0,0.00084444,30]
[393925283,1763097050936,-506.40453537,0.00084444,30]
[393925285,1763097050945,-1317354.37081197,0.00084444,30]
[393925306,1763097051167,-3961.21422808,0.00084444,30]
[393926130,1763097422853,-150.0,0.00025657,2]
[393926132,1763097422882,-286.70361692,0.00025911,2]
[393926134,1763097422911,-177.44788898,0.00026011,2]
[393926136,1763097422941,-283.06608424,0.00026103,2]
[393926138,1763097422977,-500.0,0.0002611,2]
[393926140,1763097423007,-500.0,0.0002611,2]
[393926142,1763097423036,-500.0,0.0002611,2]
[393926144,1763097423063,-477.0,0.00026848,2]
[393926146,1763097423092,-683.0,0.00026848,2]
[393926148,1763097423122,-500.0,0.0002692,2]
[393926157,1763097423346,-601.64013686,0.0002692,2]
[393926251,1763097425774,-300.0,0.00026919,2]
[393926254,1763097425809,-9400.01,0.0002692,2]
[393926386,1763097428923,-226.78935519,0.0002692,2]
[393926864,1763097609314,-150.0,0.00025654,2]
[393926865,1763097609341,-443.67500594,0.00025654,2]
[393926866,1763097609481,-893.32499406,0.00025654,2]
[393926867,1763097609510,-1016.35518572,0.00026103,2]
[393926868,1763097609540,-300.0,0.00026392,2]
[393926869,1763097609569,-300.0,0.00026392,2]
[393926870,1763097609599,-1200.0,0.00026392,2]
[393926871,1763097609633,-1120.59964044,0.00026393,2]
[393926872,1763097609765,-339.45035956,0.00026393,2]
[393926873,1763097609803,-1460.05,0.00026393,2]
[393926874,1763097609833,-1460.05,0.00026393,2]
[393926875,1763097609863,-1460.05,0.00026393,2]
[393926876,1763097609950,-1239.71,0.00026393,2]
[393926877,1763097612395,-220.34,0.00026393,2]
[393926878,1763097612422,-1460.05,0.00026393,2]
[393926879,1763097612449,-1460.05,0.0002692,2]
[393926880,1763097612478,-161.0839225,0.00027039,2]
[393926881,1763097612505,-1460.05,0.00027103,2]
[393926882,1763097612533,-173.772155,0.00027323,2]
[393926883,1763097612641,-129.317845,0.00027468,2]
[393926885,1763097615548,-1330.732155,0.00027468,2]
[393926890,1763097626348,5000.0,0.00027,10]
[393926893,1763097634438,5000.0,0.00027,10]
[393926898,1763097649776,5000.0,0.00027,10]
[393926901,1763097658098,5000.0,0.00027,10]
[393926902,1763097669268,-207.05542546,0.000253,2]
[393926903,1763097670913,-300.0,0.000253,2]
[393926904,1763097672451,-292.94457454,0.000253,2]
[393926905,1763097673715,5000.0,0.00027,10]
[393926906,1763097681553,5000.0,0.00027,10]
[393926910,1763097696954,5000.0,0.00027,10]
[393926911,1763097705626,5000.0,0.00027,10]
[393926913,1763097721374,5000.0,0.00027,10]
[393926914,1763097729526,5000.0,0.00027,10]
[393926918,1763097744679,5000.0,0.00027,10]
[393926924,1763097752564,5000.0,0.00027,10]
[393926925,1763097758629,150.0,0.00025206,2]
[393926926,1763097768316,3087.07,0.00027,10]
[393926927,1763097776128,5000.0,0.00025206,2]
[393926938,1763097798726,4850.01,0.00025206,2]
[393926939,1763097798751,149.99,0.00025206,2]
[393926940,1763097799711,-1912.93,0.00027,10]
[393926945,1763097813576,5000.0,0.00027,10]
[393926948,1763097822087,87.07,0.00027,10]
[393926951,1763097837752,5000.0,0.00025206,2]
[393926957,1763097860441,4850.02,0.00025206,2]
[393926958,1763097860464,149.98,0.00025206,2]
[393926986,1763097883333,5000.0,0.00025206,2]
[393927015,1763097905762,4850.03,0.00025206,2]
[393927016,1763097905787,149.97,0.00025206,2]
[393927028,1763097920361,152.09159993,0.00025156,2]
[393927030,1763097928459,5000.0,0.00025206,2]
[393927036,1763097939325,-150.0,0.00025654,2]
[393927037,1763097939352,-266.96308308,0.00026103,2]
[393927041,1763097951009,4697.94840007,0.00025206,2]
[393927042,1763097951033,302.05159993,0.00025206,2]
[393927049,1763097974031,5000.0,0.00025206,2]
[393927051,1763097996374,4697.95840007,0.00025206,2]
[393927052,1763097996396,302.04159993,0.00025206,2]
[393927059,1763098004794,5000.0,0.00025206,2]
[393927067,1763098020508,4697.96840007,0.00025206,2]
[393927068,1763098020532,302.03159993,0.00025206,2]
[393927071,1763098028296,5000.0,0.00025206,2]
[393927079,1763098043509,4697.97840007,0.00025206,2]
[393927080,1763098043537,302.02159993,0.00025206,2]
[393927081,1763098051812,5000.0,0.00025206,2]
[393927082,1763098067081,4697.98840007,0.00025206,2]
[393927083,1763098067105,302.01159993,0.00025206,2]
[393927084,1763098074939,5000.0,0.00025206,2]
[393927085,1763098088469,2309.93385874,0.000125,2]
[393927086,1763098090527,2388.06454133,0.00025206,2]
[393927087,1763098090556,2611.93545867,0.00025206,2]
[393927090,1763098098436,946.08341548,0.00025206,2]
[393927094,1763098101702,287.6888159,0.0001,2]
[393927100,1763098106994,6154.30230995,0.00017,2]
[393927101,1763098107017,1415.56291094,0.00017,2]
[393927102,1763098108274,1752.17792251,0.000248,4]
[393927107,1763098111785,1000.0,0.0001,2]
[393927108,1763098113331,5000.0,0.00025206,2]
[393927112,1763098117747,832.26916655,0.0002465,2]
[393927113,1763098117770,10000.01,0.0002465,2]
[393927114,1763098117791,10000.01,0.0002465,2]
[393927115,1763098117818,20010.10331114,0.0002465,2]
[393927116,1763098118163,511.43648449,0.0002465,2]
[393927117,1763098120024,54989.83229468,0.00024142,2]
[393927119,1763098120278,393.5647388,0.00039944,30]
[393927121,1763098121827,9579.8744641,0.00014,2]
[393927122,1763098130673,-150.0,0.00025252,2]
[393927123,1763098130694,-800.0,0.000253,2]
[393927156,1763098232186,-439.17891392,0.00025808,2]
[393927157,1763098232203,-391.24924178,0.00025808,2]
[393927163,1763098238047,-4169.5718443,0.00025808,2]
[393927164,1763098238056,-162.08989596,0.00026003,2]
[393927165,1763098238066,-1200.0,0.00026102,2]
[393927166,1763098238075,-300.0,0.00026102,2]
[393927167,1763098238084,-1268.75207283,0.00026103,2]
[393927168,1763098238094,-215.98767713,0.00026103,2]
[393927169,1763098238103,-218.51728984,0.00026103,2]
[393927170,1763098238112,-253.71263082,0.00026396,2]
[393927171,1763098238121,-2122.54283233,0.00026549,2]
[393927172,1763098238130,-460.541523,0.00026995,2]
[393927173,1763098238139,-177.0,0.00027252,2]
[393927174,1763098238149,-2133.07094008,0.000275,2]
[393927175,1763098238158,-1200.0,0.00027954,2]
[393927176,1763098238167,-1833.69919274,0.00028228,2]
[393927177,1763098238176,-420.0,0.00028245,2]
[393927178,1763098238186,-1480.0,0.00028371,2]
[393927179,1763098238195,-201.14747196,0.00028499,2]
[393927180,1763098238209,-299.11312444,0.00028499,2]
[393927181,1763098238219,-500.0,0.00028499,2]
[393927182,1763098238228,-621.93367681,0.00028499,2]
[393927183,1763098238239,-361.38064837,0.00028499,2]
[393927184,1763098238249,-500.0,0.00028499,2]
[393927185,1763098238260,-500.0,0.00028499,2]
[393927186,1763098238269,-500.0,0.00028499,2]
[393927187,1763098238280,-500.0,0.00028499,2]
[393927188,1763098238290,-529.15894294,0.00028499,2]
[393927189,1763098238299,-15101.55844578,0.000285,7]
[393927190,1763098238308,-168.0,0.00028535,2]
[393927191,1763098238321,-1238.5171747,0.00028581,2]
[393927192,1763098238330,-602.12,0.0002869,2]
[393927193,1763098238339,-500.0,0.0002869,2]
[393927194,1763098238348,-2414.0,0.00028719,7]
[393927195,1763098238358,-395.46388907,0.0002872,2]
[393927196,1763098238367,-429.34364715,0.0002872,2]
[393927197,1763098238376,-7106.61099501,0.00028721,2]
[393927198,1763098238386,-2414.0,0.00028768,2]
[393927199,1763098238396,-602.12,0.00028772,2]
[393927200,1763098238405,-500.0,0.00028773,5]
[393927201,1763098238415,-594.69448026,0.00028773,5]
[393927202,1763098238424,-500.0,0.00028773,5]
[393927203,1763098238434,-263.88541376,0.00028773,5]
[393927204,1763098238443,-500.0,0.00028773,5]
[393927205,1763098238452,-500.0,0.00028773,5]
[393927206,1763098238462,-500.0,0.00028773,5]
[393927207,1763098238471,-507.53235926,0.00028773,5]
[393927208,1763098238481,-506.21040193,0.00028773,5]
[393927209,1763098238491,-500.0,0.00028773,5]
[393927210,1763098238500,-500.0,0.00028773,5]
[393927211,1763098238510,-500.0,0.00028773,5]
[393927212,1763098238520,-505.47384484,0.00028773,5]
[393927213,1763098238530,-500.0,0.00028773,5]
[393927214,1763098238539,-500.0,0.00028773,5]
[393927215,1763098238549,-500.0,0.00028773,5]
[393927216,1763098238558,-500.0,0.00028773,5]
[393927217,1763098238567,-500.0,0.00028773,5]
[393927218,1763098238576,-504.42164991,0.00028773,5]
[393927219,1763098238586,-263.37778792,0.00028773,5]
[393927220,1763098238595,-500.0,0.00028773,5]
[393927221,1763098238604,-502.73379363,0.00028773,5]
[393927222,1763098238614,-500.0,0.00028773,5]
[393927223,1763098238623,-500.0,0.00028773,5]
[393927224,1763098238632,-500.0,0.00028773,5]
[393927225,1763098238642,-500.0,0.00028773,5]
[393927226,1763098238651,-2414.0,0.00028795,7]
[393927227,1763098238660,-595.15848015,0.00028878,2]
[393927228,1763098238670,-772.81856487,0.00028901,2]
[393927229,1763098238680,-168.0,0.00028929,7]
[393927230,1763098238689,-155.9568598,0.00028938,2]
[393927231,1763098238699,-2414.0,0.00029018,2]
[393927232,1763098238708,-3291.78550505,0.00029035,2]
[393927233,1763098238718,-500.0,0.00029047,5]
[393927234,1763098238727,-168.0,0.00029195,2]
[393927235,1763098238737,-602.12,0.00029203,2]
[393927236,1763098238747,-2414.0,0.00029211,2]
[393927237,1763098238756,-204.0,0.00029252,2]
[393927238,1763098238768,-3108.00970355,0.00029268,2]
[393927239,1763098238778,-1071.28526427,0.00029289,2]
[393927240,1763098238787,-505.81325327,0.00029321,5]
[393927241,1763098238797,-414.92008594,0.00029321,5]
[393927242,1763098238807,-1000.0,0.00029321,5]
[393927243,1763098238816,-505.17306137,0.00029321,5]
[393927244,1763098238826,-1000.0,0.00029321,5]
[393927245,1763098238835,-1000.0,0.00029321,5]
[393927246,1763098238846,-1000.0,0.00029321,5]
[393927247,1763098238856,-383.81972393,0.00029321,5]
[393927248,1763098238865,-1000.0,0.00029321,5]
[393927249,1763098238874,-641.48231932,0.00029321,5]
[393927250,1763098238884,-399.85160717,0.00029321,5]
[393927251,1763098238893,-504.39823919,0.00029321,5]
[393927252,1763098238903,-507.62583815,0.00029321,5]
[393927253,1763098238912,-251.44066914,0.00029321,5]
[393927254,1763098238922,-1000.0,0.00029321,5]
[393927255,1763098238931,-1000.0,0.00029321,5]
[393927256,1763098238941,-1000.0,0.00029321,5]
[393927257,1763098238951,-539.07376056,0.00029321,5]
[393927258,1763098238962,-472.37042904,0.00029362,2]
[393927259,1763098238971,-469.90790893,0.00029362,2]
[393927260,1763098238980,-583.84934613,0.00029362,2]
[393927261,1763098238990,-168.0,0.00029366,2]
[393927262,1763098238999,-508.70751545,0.00029373,5]
[393927263,1763098239009,-503.74378873,0.00029373,5]
[393927264,1763098239018,-501.30026835,0.00029373,5]
[393927265,1763098239028,-1373.89967088,0.00029403,2]
[393927266,1763098239039,-2222.48476172,0.0002941,6]
[393927267,1763098239048,-500.0,0.0002942,20]
[393927268,1763098239058,-602.12,0.0002942,2]
[393927269,1763098239068,-6118.38130868,0.00029421,2]
[393927270,1763098239077,-168.0,0.00029427,2]
[393927271,1763098239087,-160.0,0.00029457,2]
[393927272,1763098239096,-6142.97085556,0.00029463,2]
[393927273,1763098239105,-370.00011554,0.00029473,5]
[393927274,1763098239115,-500.0,0.00029473,5]
[393927275,1763098239124,-501.57709844,0.00029473,5]
[393927276,1763098239134,-502.18904667,0.00029473,5]
[393927277,1763098239143,-500.0,0.00029473,5]
[393927278,1763098239153,-500.0,0.00029473,5]
[393927279,1763098239163,-505.77376342,0.00029473,5]
[393927280,1763098239173,-644.14709119,0.00029473,5]
[393927281,1763098239183,-504.94997243,0.00029473,5]
[393927282,1763098239193,-224.91690987,0.00029473,5]
[393927283,1763098239204,-503.39710004,0.00029473,5]
[393927284,1763098239214,-503.86473461,0.00029473,5]
[393927285,1763098239224,-288.66608445,0.00029473,5]
[393927286,1763098239234,-505.94324455,0.00029473,5]
[393927287,1763098239245,-501.39863307,0.00029473,5]
[393927288,1763098239254,-504.99864127,0.00029473,5]
[393927289,1763098239266,-504.68009058,0.00029473,5]
[393927290,1763098239276,-500.0,0.00029473,5]
[393927291,1763098239287,-500.55882154,0.00029473,5]
[393927292,1763098239297,-502.43320757,0.00029473,5]
[393927293,1763098239306,-502.19725887,0.00029473,5]
[393927294,1763098239316,-503.84267512,0.00029473,5]
[393927295,1763098239326,-500.69351379,0.00029473,3]
[393927296,1763098239336,-188.85066614,0.00029473,5]
[393927297,1763098239345,-507.19978494,0.00029473,5]
[393927298,1763098239355,-500.0,0.00029473,5]
[393927299,1763098239365,-158.47400105,0.00029473,5]
[393927300,1763098239375,-532.66186175,0.00029473,5]
[393927301,1763098239476,-504.83884633,0.00029473,5]
[393927302,1763098239485,-512.51560637,0.00029473,5]
[393927303,1763098239495,-503.20852819,0.00029473,5]
[393927304,1763098239504,-500.0,0.00029473,5]
[393927305,1763098239515,-500.0,0.00029473,5]
[393927306,1763098239525,-500.0,0.00029473,5]
[393927307,1763098239534,-500.0,0.00029473,5]
[393927308,1763098239543,-505.20733079,0.00029473,5]
[393927309,1763098239553,-504.04266578,0.00029473,5]
[393927310,1763098239562,-218.18295655,0.00029473,5]
[393927311,1763098239571,-500.0,0.00029473,5]
[393927312,1763098239580,-504.17053572,0.00029473,5]
[393927313,1763098239589,-510.66472727,0.00029473,5]
[393927314,1763098239598,-602.12,0.00029557,2]
[393927315,1763098239608,-168.0,0.0002961,2]
[393927316,1763098239617,-1904.50713649,0.000297,2]
[393927317,1763098239626,-503.87177589,0.00029868,5]
[393927318,1763098239635,-1500.0,0.00029868,5]
[393927319,1763098239644,-959.44344524,0.00029868,5]
[393927320,1763098239654,-504.69879942,0.00029868,5]
[393927321,1763098239663,-1500.0,0.00029868,5]
[393927322,1763098239672,-1500.0,0.00029868,5]
[393927323,1763098239682,-1500.0,0.00029868,5]
[393927324,1763098239692,-161.11,0.00029881,3]
[393927325,1763098239701,-322.22,0.00029891,3]
[393927326,1763098239710,-483.36,0.00029891,3]
[393927327,1763098239720,-1268.75207283,0.00029901,2]
[393927328,1763098239730,-2144.57151751,0.00029905,2]
[393927329,1763098239740,-150.0,0.00029945,2]
[393927331,1763098239750,-644.45,0.00029963,3]
[393927333,1763098239760,-502.70768075,0.00029973,5]
[393927335,1763098239769,-162.99163183,0.00029973,5]
[393927337,1763098239779,-150.0,0.00029973,5]
[393927339,1763098239789,-150.0,0.00029973,5]
[393927341,1763098239798,-602.12,0.00029973,2]
[393927342,1763098239808,-2414.0,0.00029974,2]
[393927344,1763098239818,-168.0,0.00029979,2]
[393927346,1763098239828,-85691.4251763,0.0003,30]
[393927349,1763098239837,-383.74143505,0.0003,30]
[393927350,1763098239847,-260.0,0.00030005,2]
[393927353,1763098239857,-5097.35733589,0.00030011,6]
[393927355,1763098239866,-602.12,0.0003002,2]
[393927356,1763098239876,-1000.0,0.00030021,5]
[393927359,1763098239886,-465.26092499,0.00030021,5]
[393927360,1763098239895,-1000.0,0.00030021,5]
[393927363,1763098239906,-504.96432664,0.00030021,5]
[393927365,1763098239915,-518.34907665,0.00030021,5]
[393927367,1763098239924,-1000.0,0.00030021,5]
[393927369,1763098239933,-1012.00422564,0.00030021,5]
[393927371,1763098239943,-1000.0,0.00030021,5]
[393927373,1763098239952,-1000.0,0.00030021,5]
[393927375,1763098239961,-168.0,0.00030046,2]
[393927377,1763098239970,-2975.79240076,0.00030111,2]
[393927379,1763098239979,-300.0,0.00030137,5]
[393927382,1763098239989,-1680.0,0.00030192,2]
[393927384,1763098239998,-168.0,0.00030199,2]
[393927385,1763098240008,-403.55,0.000304,7]
[393927387,1763098240018,-6142.97085556,0.00030406,2]
[393927390,1763098240027,-2017.93434908,0.00030416,5]
[393927392,1763098240036,-2000.0,0.00030416,5]
[393927393,1763098240055,-939.62327247,0.00030416,5]
[393927395,1763098240064,-250.0,0.00030521,5]
[393927396,1763098240082,-250.0,0.00030521,5]
[393927397,1763098240100,-4280.85591604,0.00030522,2]
[393927398,1763098240111,-360.0,0.00030553,2]
[393927399,1763098240119,-587.0,0.00030564,2]
[393927400,1763098240128,-602.12,0.00030568,2]
[393927401,1763098240137,-1013.6468503,0.00030568,5]
[393927402,1763098240146,-482.60926113,0.00030568,5]
[393927403,1763098240154,-1500.0,0.00030568,5]
[393927404,1763098240164,-901.25371649,0.00030568,5]
[393927405,1763098240173,-1500.0,0.00030568,5]
[393927406,1763098240182,-2414.0,0.0003061,7]
[393927407,1763098240192,-168.0,0.00030656,2]
[393927408,1763098240205,-301.4290475,0.00030685,5]
[393927409,1763098240214,-168.0,0.00030706,2]
[393927410,1763098240223,-602.12,0.00030829,2]
[393927411,1763098240232,-168.0,0.0003085,2]
[393927412,1763098240242,-153.95800205,0.0003087,2]
[393927413,1763098240251,-362.67971831,0.00030876,2]
[393927414,1763098240260,-2414.0,0.00030906,2]
[393927415,1763098240269,-168.0,0.00030908,7]
[393927416,1763098240282,-2253.0221131,0.00030964,5]
[393927417,1763098240292,-2414.0,0.00031006,2]
[393927418,1763098240304,-168.0,0.00031046,2]
[393927419,1763098240315,-168.0,0.00031056,2]
[393927420,1763098240325,-243.583068,0.00031068,5]
[393927421,1763098240336,-350.0,0.00031068,5]
[393927422,1763098240345,-168.0,0.00031074,7]
[393927423,1763098240358,-460.0,0.00031101,2]
[393927424,1763098240368,-2000.0,0.00031116,5]
[393927425,1763098240378,-2000.0,0.00031116,5]
[393927426,1763098240389,-236.82,0.000312,14]
[393927427,1763098240398,-6610.2425987,0.000312,7]
[393927428,1763098240415,-1059.6274013,0.000312,7]
[393927429,1763098240426,-322.22,0.00031251,3]
[393927430,1763098240435,-231.0,0.00031252,2]
[393927431,1763098240444,-644.44,0.00031261,3]
[393927432,1763098240454,-1118.63882962,0.00031333,3]
[393927433,1763098240465,-170.26117038,0.00031333,3]
[393927434,1763098240474,-362.67971831,0.000316,2]
[393927435,1763098240483,-450.0,0.00031616,5]
[393927436,1763098240492,-560.0,0.00031649,2]
[393927437,1763098240501,-186.47582751,0.00031663,2]
[393927438,1763098240523,-415.64417249,0.00031663,2]
[393927439,1763098240532,-134.27091816,0.00031664,5]
[393927440,1763098240718,-766.28,0.00029463,10]
[393927441,1763098240728,-2365.72908184,0.00031664,5]
[393927442,1763098240738,-2500.0,0.00031664,5]
[393927443,1763098240748,-218.51728984,0.000318,2]
[393927444,1763098240759,-100000.0,0.0003199,2]
[393927445,1763098240774,-540.1463635,0.00032164,5]
[393927446,1763098240784,-660.0,0.00032197,2]
[393927447,1763098240795,-2506.06687289,0.00032212,5]
[393927448,1763098240805,-3000.0,0.00032212,5]
[393927449,1763098240815,-362.67971831,0.00032323,2]
[393927450,1763098240824,-6142.97085556,0.00032599,2]
[393927451,1763098240833,-2351.0,0.00032609,3]
[393927452,1763098240843,-150.74,0.00032667,2]
[393927453,1763098240853,-760.0,0.00032745,2]
[393927454,1763098240863,-3500.0,0.0003276,5]
[393927455,1763098240872,-907.67768212,0.00032881,120]
[393927456,1763098240882,-10051.49863839,0.0003295,2]
[393927457,1763098240891,-5853.12643187,0.00033,10]
[393927458,1763098240901,-20092.32082953,0.00033,2]
[393927528,1763098244010,-468.942,0.00033,2]
[393927534,1763098246345,-5000.0,0.00025808,2]
[393927535,1763098246354,-41808.29739991,0.00033,2]
[393927536,1763098246365,-2155.61625196,0.00033,2]
[393927539,1763098246740,-276.5150003,0.00033,2]
[393927556,1763098286860,236.82,0.0003288,120]
[393927712,1763098389835,-200.79896938,0.000253,2]
[393927713,1763098391974,-300.0,0.000253,2]
[393927714,1763098395115,-177.0,0.000253,2]
[393927715,1763098397040,-122.20103062,0.000253,2]
[393927747,1763098461238,5000.0,0.00025206,2]
[393927765,1763098484482,5000.0,0.00025206,2]
[393927768,1763098507419,5000.0,0.00025206,2]
[393927770,1763098529864,5000.0,0.00025206,2]
[393927775,1763098552212,5000.0,0.00025206,2]
[393927776,1763098575161,5000.0,0.00025206,2]
[393927778,1763098597448,5000.0,0.00025206,2]
[393927788,1763098619820,5000.0,0.00025206,2]
[393927806,1763098627114,1557.2568968,0.0003288,120]
[393927810,1763098643086,5000.0,0.00025206,2]
[393927811,1763098645782,400.38245665,0.0003288,120]
[393927817,1763098854644,185.829572,0.00013699,2]
[393927818,1763098854798,185.829572,0.00020187,2]
[393927819,1763098886623,-150.0,0.00025547,2]
[393927820,1763098886651,-999.0,0.00026253,2]
[393927821,1763098886678,-185.829572,0.00026676,2]
[393927822,1763098886706,-200.0,0.00027122,15]
[393927823,1763098886734,-335.3641694,0.00027282,2]
[393927824,1763098886761,-300.0,0.00027356,2]
[393927825,1763098886788,-220.0,0.00027357,2]
[393927826,1763098886815,-300.0,0.00027357,2]
[393927827,1763098886842,-300.0,0.00027357,2]
[393927828,1763098886869,-300.0,0.00027357,2]
[393927829,1763098886897,-1200.0,0.00027357,2]
[393927830,1763098887088,-4541.6082475,0.00027358,30]
[393927831,1763098887253,-916.793505,0.00027358,30]
[393927832,1763098887362,-7283.216495,0.00027547,2]
[393927833,1763098887377,-10000.01,0.00027547,2]
[393927834,1763098887408,-10000.01,0.00027547,2]
[393927835,1763098887422,-1314.39186034,0.00027547,2]
[393927836,1763098887431,-177.0,0.00027547,2]
[393927837,1763098887442,-191.182948,0.00027606,60]
[393927838,1763098887451,-8317.43519166,0.0002799,2]
[393927839,1763098887485,-2225.07498159,0.0002799,2]
[393927840,1763098887509,-5549.86003682,0.0002799,2]
[393927841,1763098889598,-320.526691,0.00028398,2]
[393927842,1763098889719,-252.43947297,0.00028499,20]
[393927843,1763098889751,-186.36462291,0.000286,2]
[393927844,1763098889778,-2898.98328457,0.000286,2]
[393927845,1763098889807,-830.43,0.00028663,10]
[393927846,1763098889833,-408.69454229,0.00028672,2]
[393927847,1763098889907,-393.90650222,0.00028672,2]
[393927848,1763098889935,-330.65930033,0.00028672,2]
[393927849,1763098889964,-337.92412372,0.00028672,2]
[393927850,1763098889998,-226.66630333,0.00028672,2]
[393927851,1763098890028,-336.57321588,0.00028672,2]
[393927852,1763098890057,-650.22541929,0.00028672,2]
[393927853,1763098890087,-500.0,0.00028672,2]
[393927854,1763098890119,-281.70202321,0.00028672,2]
[393927855,1763098890387,-205.13277252,0.00028673,2]
[393927856,1763098890404,-3884.69622404,0.00028673,2]
[393927857,1763098892710,-10000.01,0.00028673,2]
[393927858,1763098892829,-10000.01,0.00028673,2]
[393927859,1763098892943,-10000.01,0.00028673,2]
[393927860,1763098893072,-10000.01,0.00028673,2]
[393927861,1763098893202,-10000.01,0.00028673,2]
[393927865,1763098957700,-500.0,0.00027573,5]
[393927866,1763098957720,-500.0,0.00027573,5]
[393927867,1763098957739,-290.869,0.00028099,18]
[393927868,1763098957759,-1000.0,0.00028121,5]
[393927869,1763098957779,-1000.0,0.00028121,5]
[393927870,1763098957799,-174.59733853,0.00028426,5]
[393927871,1763098957819,-300.0,0.00028662,2]
[393927872,1763098957839,-246.54,0.00028663,3]
[393927873,1763098957859,-739.63,0.00028663,3]
[393927874,1763098957880,-1353.88,0.00028663,10]
[393927875,1763098957900,-1867.1,0.00028663,10]
[393927876,1763098957920,-1555.92,0.00028663,10]
[393927877,1763098957940,-1500.0,0.00028668,5]
[393927878,1763098957958,-1500.0,0.00028668,5]
[393927879,1763098958497,1296.6,0.00028663,10]
[393927880,1763098963662,-181975.86366147,0.00028673,2]
[393927882,1763099015587,1648.90698823,0.00025206,2]
[393927883,1763099023418,239.036522,0.00025206,2]
[393927884,1763099029860,2862460.05056113,0.00039937,60]
[393928032,1763099304274,-150.0,0.0002589,2]
[393928033,1763099304297,-407.91330568,0.00026103,2]
[393928045,1763099306884,-500.0,0.00026103,2]
[393928119,1763099409281,-150.0,0.00025654,2]
[393928120,1763099409307,-440.2125008,0.00025654,2]
[393928121,1763099414602,-500.0,0.00025654,2]
[393928122,1763099420505,-396.7874992,0.00025654,2]
[393928123,1763099420532,-90.55138577,0.00026003,2]
[393928124,1763099422978,-500.0,0.00026003,2]
[393928138,1763099432327,-406.47235875,0.00026003,2]
[393928139,1763099432340,-590.78466951,0.00026003,2]
[393928140,1763099432351,-796.48747286,0.00026003,2]
[393928141,1763099432362,-147.7660862,0.00026103,2]